bitfinex/quotes_SOLUSD_20241125
["timestamp","ask_amount","ask_price","bid_price","bid_amount"]
[1732503666138,8.54251862,250.11,250.01,3.1997]
[1732503666359,15.8341,250.12,250.01,3.1997]
[1732503666360,5.55729379,250.06,250.02,23.776884]
[1732503666540,5.55729379,250.06,250.01,23.776884]
[1732503666939,15.8341,250.12,250.01,23.776884]
[1732503667258,5.55729379,250.06,250.01,23.776884]
[1732503667739,5.55729379,250.06,250.03,23.776884]
[1732503668854,15.8341,250.12,250.0,25.55729379]
[1732503668855,5.55729379,250.08,250.0,25.55729379]
[1732503669061,5.55729379,250.08,250.01,26.976684]
[1732503669937,5.55729379,250.11,250.02,5.55729379]
[1732503670256,5.55729379,250.11,250.05,23.776884]
[1732503671141,5.55729379,250.11,250.07,23.776884]
[1732503671464,5.55729379,250.15,250.07,29.33417779]
[1732503671639,5.55729379,250.15,250.08,5.55729379]
[1732503671844,15.6067,250.18,250.07,23.776884]
[1732503671845,5.55729379,250.14,250.07,23.776884]
[1732503672035,5.55729379,250.13,250.07,23.776884]
[1732503672250,5.55729379,250.11,250.07,23.776884]
[1732503672450,15.6067,250.18,250.07,23.776884]
[1732503672451,5.55729379,250.1,250.07,23.776884]
[1732503672741,5.55729379,250.1,250.06,23.776884]
[1732503673061,5.55729379,250.07,249.99,3.2]
[1732503673242,5.55729379,250.04,249.99,3.2]
[1732503674045,5.55729379,250.02,249.97,3.2003]
[1732503674543,5.55729379,250.02,249.95,3.2006]
[1732503674948,5.55729379,250.04,249.96,5.55729379]
[1732503675547,5.55729379,250.04,249.97,3.2003]
[1732503675754,5.55729379,250.04,249.98,23.776884]
[1732503675953,5.55729379,250.06,249.98,29.33417779]
[1732503676159,5.55729379,250.04,249.98,23.776884]
[1732503677041,5.55729379,250.04,249.98,3.2001]
[1732503677439,5.55729379,250.04,249.99,23.776884]
[1732503677646,15.6067,250.09,249.99,23.776884]
[1732503677859,5.55729379,250.05,249.99,23.776884]
[1732503678347,5.55729379,250.01,249.95,20.0]
[1732503679365,15.6067,250.09,249.96,3.2005]
[1732503679366,5.55729379,250.03,249.96,3.2005]
[1732503679666,5.55729379,250.01,249.92,3.2009]
[1732503679844,5.55729379,249.99,249.92,3.2009]
[1732503680176,5.55729379,250.0,249.92,3.2009]
[1732503680740,5.55729379,250.0,249.93,23.776884]
[1732503682363,5.55729379,250.0,249.93,26.977684]
[1732503683858,20.73429379,250.02,249.93,32.53497779]
[1732503685568,15.177,250.02,249.97,5.55729379]
[1732503685745,15.177,250.02,249.98,23.776884]
[1732503686353,15.177,250.02,249.95,23.776884]
[1732503686555,5.55729379,250.01,249.95,23.776884]
[1732503687461,5.55729379,250.01,249.95,26.977384]
[1732503687662,5.55729379,250.01,249.94,23.776884]
[1732503687870,5.55729379,249.99,249.94,23.776884]
[1732503688778,5.55729379,249.99,249.93,23.776884]
[1732503689075,5.55729379,249.97,249.91,23.776884]
[1732503690076,5.55729379,249.97,249.92,23.776884]
[1732503691480,5.55729379,249.95,249.87,8.75879379]
[1732503692477,5.55729379,249.97,249.88,23.776884]
[1732503692685,5.55729379,249.97,249.9,23.776884]
[1732503693760,5.55729379,249.97,249.88,26.978384]
[1732503694368,21.7753,250.02,249.92,23.776884]
[1732503694680,5.55729379,250.0,249.94,23.776884]
[1732503695359,21.7753,250.02,249.96,23.776884]
[1732503696659,15.177,250.02,249.98,23.776884]
[1732503696878,15.177,250.02,250.0,23.776884]
[1732503697075,5.55729379,250.06,250.0,23.776884]
[1732503697277,28.18679379,250.08,250.0,23.776884]
[1732503697470,28.18679379,250.08,250.0,26.976784]
[1732503698067,5.55729379,250.06,250.0,26.976784]
[1732503698463,5.55729379,250.02,249.98,23.776884]
[1732503698784,5.55729379,250.04,249.98,23.776884]
[1732503698982,5.55729379,250.04,249.92,6.29169801]
[1732503699279,5.55729379,250.02,249.95,25.55729379]
[1732503699479,5.55729379,250.02,249.96,3.2005]
[1732503699791,5.55729379,250.04,249.96,3.2005]
[1732503700410,5.55729379,250.04,249.99,23.776884]
[1732503700915,22.6295,250.08,249.99,23.776884]
[1732503700916,5.55729379,250.06,249.99,23.776884]
[1732503701201,22.6295,250.08,249.99,29.33417779]
[1732503701202,28.18679379,250.08,249.99,29.33417779]
[1732503702085,28.18679379,250.08,250.01,23.776884]
[1732503703214,22.6295,250.08,250.01,23.776884]
[1732503703382,28.18679379,250.08,250.03,23.776884]
[1732503703583,22.15609379,250.08,250.03,23.776884]
[1732503704398,16.5988,250.08,250.04,3.1994]
[1732503704586,16.5988,250.08,250.05,23.776884]
[1732503705192,5.55729379,250.11,250.05,23.776884]
[1732503705391,5.55729379,250.12,250.05,29.33417779]
[1732503705688,6.2467,250.13,249.98,6.29169801]
[1732503705986,6.2467,250.13,250.03,20.0]
[1732503705987,5.55729379,250.08,250.03,20.0]
[1732503706382,5.55729379,250.08,250.0,5.55729379]
[1732503706564,5.55729379,250.08,250.01,3.1998]
[1732503706759,5.55729379,250.06,250.01,3.1998]
[1732503706983,5.55729379,250.06,250.0,20.0]
[1732503707378,6.2467,250.13,250.0,20.0]
[1732503707379,5.55729379,250.07,250.0,20.0]
[1732503708273,8.7160037,250.07,250.01,23.776884]
[1732503708480,8.7160037,250.07,250.01,26.976584]
[1732503710992,6.2467,250.13,250.01,26.976584]
[1732503710993,8.7160037,250.09,250.01,26.976584]
[1732503711167,8.7160037,250.09,250.01,35.6925877]
[1732503711675,8.7160037,250.11,250.01,35.6925877]
[1732503712385,8.7160037,250.06,249.99,28.7160037]
[1732503712587,8.7160037,250.06,250.0,3.1999]
[1732503714096,8.7160037,250.08,250.02,3.1997]
[1732503714278,8.7160037,250.08,250.03,23.776884]
[1732503715288,8.7160037,250.08,250.04,3.1994]
[1732503715887,8.7160037,250.1,250.04,3.1994]
[1732503716775,8.7160037,250.12,250.05,23.776884]
[1732503717183,8.7160037,250.12,250.06,3.1992]
[1732503717493,8.7160037,250.12,250.07,23.776884]
[1732503718092,20.0,250.17,250.07,23.776884]
[1732503718271,8.7160037,250.13,250.07,23.776884]
[1732503719070,8.7160037,250.08,250.01,3.1998]
[1732503720103,8.7160037,250.1,250.03,3.1996]
[1732503720592,8.7160037,250.1,250.04,23.776884]
[1732503720971,15.5347,250.13,250.06,8.7160037]
[1732503721166,15.5347,250.13,250.07,23.776884]
[1732503721478,8.7160037,250.14,250.07,23.776884]
[1732503722173,8.7160037,250.14,250.09,23.776884]
[1732503722772,8.7160037,250.12,250.09,23.776884]
[1732503723373,8.7160037,250.12,250.09,26.975684]
[1732503723572,8.7160037,250.14,250.09,23.776884]
[1732503723976,8.7160037,250.1,250.05,3.1993]
[1732503724896,8.7160037,250.08,250.01,26.976684]
[1732503725281,8.7160037,250.08,250.01,3.1998]
[1732503725486,10.0,250.17,250.01,3.1998]
[1732503725487,8.7160037,250.04,250.01,3.1998]
[1732503725676,15.2924,250.11,249.98,6.29169801]
[1732503725677,8.7160037,250.02,249.98,6.29169801]
[1732503725883,8.7160037,250.02,249.97,6.29169801]
[1732503726094,8.7160037,250.04,249.97,6.29169801]
[1732503726392,8.7160037,250.04,249.96,15.00770171]
[1732503726591,8.7160037,250.04,249.97,3.2003]
[1732503726999,8.7160037,250.02,249.94,8.7160037]
[1732503727199,8.7160037,250.02,249.94,11.9167037]
[1732503728074,8.7160037,250.06,249.98,8.7160037]
[1732503728481,8.7160037,250.08,250.01,23.776884]
[1732503729202,8.7160037,250.06,249.99,23.776884]
[1732503729507,8.7160037,250.06,250.0,3.2]
[1732503729884,8.7160037,250.06,250.01,23.776884]
[1732503730202,8.7160037,250.06,250.0,3.2]
[1732503730693,8.7160037,250.06,250.0,23.776884]
[1732503731595,8.7160037,250.04,250.0,23.776884]
[1732503731978,8.7160037,250.04,250.0,26.976784]
[1732503732507,15.2924,250.11,249.94,11.9167037]
[1732503732508,8.7160037,250.02,249.94,11.9167037]
[1732503733406,8.7160037,250.0,249.92,11.9169037]
[1732503735481,8.7160037,250.0,249.94,3.2007]
[1732503739095,8.7160037,249.97,249.89,3.2013]
[1732503739304,8.7160037,249.97,249.9,20.0]
[1732503740217,8.7160037,249.97,249.89,3.2013]
[1732503740392,8.7160037,249.95,249.89,3.2013]
[1732503745907,8.7160037,249.95,249.85,11.9179037]
[1732503746110,8.7160037,249.93,249.85,11.9179037]
[1732503746311,8.7160037,249.93,249.85,3.2019]
[1732503746312,5.15544308,249.93,249.85,3.2019]
[1732503748314,5.15544308,249.93,249.87,3.2016]
[1732503748488,5.15544308,249.95,249.87,3.2016]
[1732503748695,5.15544308,249.93,249.87,3.2016]
[1732503749106,5.15544308,249.95,249.88,23.776884]
[1732503750398,5.15544308,249.95,249.9,23.776884]
[1732503751202,21.60954308,250.01,249.93,5.15544308]
[1732503751419,21.60954308,250.01,249.95,5.15544308]
[1732503751713,21.60954308,250.01,249.96,23.776884]
[1732503752414,5.15544308,249.99,249.91,2.8009]
[1732503753117,21.60954308,250.01,249.92,28.93232708]
[1732503753815,21.60954308,250.01,249.95,23.776884]
[1732503754607,21.60954308,250.01,249.95,26.577384]
[1732503755002,5.15544308,250.0,249.95,26.577384]
[1732503759321,5.15544308,249.97,249.9,2.801]
[1732503759694,5.15544308,249.97,249.88,5.15544308]
[1732503760412,5.15544308,249.97,249.89,23.776884]
[1732503760817,5.15544308,249.97,249.89,26.577984]
[1732503762058,5.15544308,249.98,249.9,7.95644308]
[1732503762597,5.15544308,249.96,249.9,2.801]
[1732503762827,16.4541,250.01,249.9,2.801]
[1732503763013,5.15544308,249.99,249.92,2.8008]
[1732503763328,5.15544308,249.99,249.93,23.776884]
[1732503764919,5.15544308,249.99,249.94,2.8006]
[1732503772526,16.4541,250.01,249.95,2.8005]
[1732503772753,16.4541,250.01,249.96,23.776884]
[1732503773725,5.15544308,250.02,249.96,2.8004]
[1732503773922,15.1318,250.07,249.97,23.776884]
[1732503774230,5.15544308,250.05,249.98,5.15544308]
[1732503774431,15.1318,250.07,249.99,23.776884]
[1732503774630,20.28724308,250.07,250.01,23.776884]
[1732503775008,20.28724308,250.07,250.01,28.93232708]
[1732503775009,15.1318,250.07,250.01,28.93232708]
[1732503775328,5.15544308,250.08,250.01,28.93232708]
[1732503775525,5.15544308,250.08,250.02,2.7997]
[1732503775724,5.15544308,250.08,250.03,23.776884]
[1732503780329,5.15544308,250.04,249.97,6.29169801]
[1732503780630,5.15544308,250.02,249.96,2.8003]
[1732503781023,5.15544308,250.05,249.98,5.15544308]
[1732503781422,5.15544308,250.05,249.98,7.95564308]
[1732503781738,5.15544308,250.06,249.98,7.95564308]
[1732503781913,15.1318,250.13,250.01,23.776884]
[1732503782118,5.15544308,250.1,250.02,5.15544308]
[1732503782339,5.15544308,250.1,250.03,23.776884]
[1732503783133,6.27241916,250.17,250.04,5.15544308]
[1732503783314,16.0664,250.2,250.03,23.776884]
[1732503783315,5.15544308,250.14,250.07,23.776884]
[1732503783513,5.15544308,250.14,250.09,23.776884]
[1732503784131,5.15544308,250.15,250.09,23.776884]
[1732503785438,5.15544308,250.15,250.07,23.776884]
[1732503786225,5.15544308,250.15,250.07,26.575984]
[1732503786820,5.15544308,250.11,250.04,23.776884]
[1732503787130,5.15544308,250.1,250.03,5.15544308]
[1732503787335,5.15544308,250.1,250.01,5.15544308]
[1732503787543,20.0,250.15,250.01,5.15544308]
[1732503787848,5.15544308,250.09,250.01,5.15544308]
[1732503788645,20.0,250.15,250.04,23.776884]
[1732503788940,5.15544308,250.12,250.04,28.93232708]
[1732503789845,5.15544308,250.12,250.04,31.73182708]
[1732503794035,5.15544308,250.1,250.04,23.776884]
[1732503794350,5.15544308,250.1,250.02,23.776884]
[1732503794553,5.15544308,250.08,250.02,23.776884]
[1732503794732,5.15544308,250.06,249.99,23.776884]
[1732503795131,5.15544308,250.08,250.01,23.776884]
[1732503796532,20.0,250.15,250.03,23.776884]
[1732503796753,5.15544308,250.1,250.03,23.776884]
[1732503797549,5.15544308,250.08,250.01,23.776884]
[1732503799360,5.15544308,250.06,249.99,23.776884]
[1732503799571,6.109,250.15,249.95,4.65155598]
[1732503799572,5.15544308,250.04,249.96,23.776884]
[1732503800368,5.15544308,250.02,249.95,2.8004]
[1732503801659,5.15544308,250.02,249.96,23.776884]
[1732503802365,15.1546,250.09,249.89,17.2666575]
[1732503802366,5.15544308,249.98,249.9,5.15544308]
[1732503803044,5.15544308,249.98,249.9,7.95644308]
[1732503803244,5.15544308,250.0,249.92,5.15544308]
[1732503803445,25.15544308,250.03,249.96,5.15544308]
[1732503803665,25.15544308,250.03,249.97,23.776884]
[1732503804369,5.15544308,250.01,249.95,23.776884]
[1732503806147,6.0168,250.06,249.93,23.776884]
[1732503806148,5.15544308,249.99,249.93,23.776884]
[1732503806549,5.15544308,249.97,249.92,23.776884]
[1732503807651,5.15544308,249.99,249.91,5.15544308]
[1732503807852,5.15544308,250.01,249.93,28.93232708]
[1732503809365,6.0168,250.06,249.93,31.73302708]
[1732503809559,5.15544308,250.03,249.96,23.776884]
[1732503813066,5.15544308,250.01,249.94,23.776884]
[1732503814663,5.15544308,250.01,249.88,6.29169801]
[1732503814664,5.15544308,249.99,249.92,23.776884]
[1732503816457,5.15544308,249.99,249.92,26.577684]
[1732503818370,20.49484308,250.01,249.92,31.73312708]
[1732503819162,20.49484308,250.01,249.95,23.776884]
[1732503819578,15.3394,250.01,249.95,23.776884]
[1732503820379,6.0168,250.06,249.98,5.15544308]
[1732503820582,5.15544308,250.04,249.99,23.776884]
[1732503820755,5.15544308,250.04,249.97,23.776884]
[1732503821364,5.13544308,250.04,249.97,23.776884]
[1732503822580,5.15544308,250.05,249.97,26.577184]
[1732503823475,6.0168,250.06,250.0,5.15544308]
[1732503823678,6.0168,250.06,250.01,23.776884]
[1732503824381,6.0168,250.06,250.0,23.776884]
[1732503825368,11.17224308,250.06,250.0,23.776884]
[1732503825594,15.6053,250.07,250.01,5.15544308]
[1732503825891,15.6053,250.07,250.02,23.776884]
[1732503827092,20.76074308,250.07,250.02,23.776884]
[1732503827277,20.76074308,250.07,250.0,23.776884]
[1732503833474,5.15544308,250.05,250.0,23.776884]
[1732503837779,5.15544308,250.05,249.98,23.776884]
[1732503838093,5.15544308,250.05,249.96,23.776884]
[1732503839173,5.15544308,250.05,249.96,26.577284]
[1732503841796,5.15544308,250.03,249.96,26.577284]
[1732503843100,5.15544308,250.01,249.92,5.15544308]
[1732503844103,5.15544308,249.99,249.89,2.8011]
[1732503844277,5.15544308,249.99,249.9,5.15544308]
[1732503844597,6.5129,250.05,249.9,5.15544308]
[1732503844598,5.15544308,249.97,249.9,5.15544308]
[1732503844979,5.15544308,249.97,249.89,2.8011]
[1732503845187,5.15544308,249.97,249.89,7.95654308]
[1732503845395,5.15544308,249.95,249.85,6.29169801]
[1732503845577,5.15544308,249.93,249.86,5.15544308]
[1732503846599,5.15544308,249.93,249.86,7.95694308]
[1732503846800,5.15544308,249.93,249.82,2.802]
[1732503846984,5.15544308,249.91,249.84,5.15544308]
[1732503848082,5.15544308,249.91,249.85,23.776884]
[1732503848286,5.15544308,249.93,249.85,23.776884]
[1732503849090,5.15544308,249.95,249.87,23.776884]
[1732503851602,5.15544308,249.95,249.89,23.776884]
[1732503851983,5.15544308,249.93,249.87,23.776884]
[1732503854189,5.15544308,249.93,249.87,26.978484]
[1732503856585,6.4588,249.96,249.87,32.13392708]
[1732503856789,6.4588,249.96,249.92,23.776884]
[1732503857015,6.4588,249.96,249.91,5.15544308]
[1732503857016,6.4588,249.96,249.91,23.776884]
[1732503857615,6.4588,249.96,249.91,28.93232708]
[1732503859010,15.542,249.98,249.94,23.776884]
[1732503859601,15.542,249.98,249.94,5.15544308]
[1732503859916,11.46224308,250.02,249.98,23.776884]
[1732503859917,6.3068,250.02,249.98,23.776884]
[1732503860086,6.3068,250.02,249.96,8.35584308]
[1732503860291,6.3068,250.02,249.97,23.776884]
[1732503861213,6.3068,250.02,249.96,26.977284]
[1732503861616,6.3068,250.02,249.96,23.776884]
[1732503861797,5.15544308,249.97,249.91,5.15544308]
[1732503862008,5.15544308,249.97,249.92,23.776884]
[1732503863399,5.15544308,249.97,249.9,23.776884]
[1732503865123,5.15544308,249.95,249.86,5.15544308]
[1732503866416,5.15544308,249.95,249.88,3.2015]
[1732503866618,5.15544308,249.95,249.89,23.776884]
[1732503868122,6.3068,250.02,249.84,6.29169801]
[1732503868123,5.15544308,249.93,249.84,6.29169801]
[1732503868296,5.15544308,249.91,249.85,23.776884]
[1732503868610,5.15544308,249.91,249.84,23.776884]
[1732503868810,5.15544308,249.89,249.83,3.202]
[1732503870093,5.15544308,249.89,249.84,23.776884]
[1732503870505,5.15544308,249.89,249.82,23.776884]
[1732503870824,5.15544308,249.89,249.82,26.979184]
[1732503871822,5.15544308,249.91,249.83,5.15544308]
[1732503872026,5.15544308,249.91,249.84,26.978884]
[1732503876321,5.15544308,249.87,249.82,26.979084]
[1732503876531,5.15544308,249.85,249.82,23.776884]
[1732503876740,5.15544308,249.85,249.81,23.776884]
[1732503876928,5.15544308,249.85,249.8,3.2024]
[1732503877743,5.15544308,249.85,249.78,8.35824308]
[1732503877930,5.15544308,249.85,249.78,3.2028]
[1732503879241,5.15544308,249.85,249.79,23.776884]
[1732503879935,11.54004308,249.85,249.79,23.776884]
[1732503881050,6.3846,249.85,249.79,23.776884]
[1732503881235,11.54004308,249.85,249.79,23.776884]
[1732503883332,11.54004308,249.85,249.78,26.979684]
[1732503884940,15.6174,249.86,249.8,23.776884]
[1732503885318,5.15544308,249.84,249.78,23.776884]
[1732503885518,15.6174,249.86,249.79,5.15544308]
[1732503885721,15.6174,249.86,249.8,23.776884]
[1732503886139,20.77284308,249.86,249.8,23.776884]
[1732503886526,20.77284308,249.86,249.8,26.979384]
[1732503886721,20.77284308,249.86,249.77,5.15544308]
[1732503886932,20.77284308,249.86,249.78,3.2027]
[1732503887134,20.77284308,249.86,249.79,23.776884]
[1732503887433,5.15544308,249.84,249.79,23.776884]
[1732503888821,15.6174,249.86,249.79,23.776884]
[1732503888822,20.77284308,249.86,249.8,23.776884]
[1732503889144,15.6174,249.86,249.8,23.776884]
[1732503889826,15.6174,249.86,249.82,23.776884]
[1732503890423,20.77284308,249.86,249.82,23.776884]
[1732503891746,15.6174,249.86,249.82,23.776884]
[1732503892927,15.6174,249.86,249.82,26.979084]
[1732503893155,15.6174,249.86,249.84,23.776884]
[1732503894028,15.6174,249.86,249.84,26.978884]
[1732503894248,15.6174,249.86,249.84,23.776884]
[1732503897644,15.6174,249.86,249.8,3.2024]
[1732503898635,15.6174,249.86,249.79,3.2026]
[1732503899233,15.6174,249.86,249.8,28.93232708]
[1732503899644,15.6174,249.86,249.82,5.15544308]
[1732503899852,15.6174,249.86,249.83,23.776884]
[1732503900229,11.20344308,249.9,249.83,23.776884]
[1732503900547,6.048,249.9,249.83,28.93232708]
[1732503900749,11.20344308,249.9,249.83,32.13442708]
[1732503901137,15.7243,249.92,249.87,5.15544308]
[1732503901331,15.7243,249.92,249.86,23.776884]
[1732503901332,15.7243,249.92,249.88,23.776884]
[1732503901542,15.7243,249.92,249.86,23.776884]
[1732503901750,20.87974308,249.92,249.86,23.776884]
[1732503902243,20.87974308,249.92,249.88,23.776884]
[1732503902634,15.7243,249.92,249.88,23.776884]
[1732503903653,15.7243,249.92,249.89,3.2014]
[1732503903847,6.1338,249.95,249.9,23.776884]
[1732503904051,21.16524308,249.98,249.9,28.93232708]
[1732503904356,21.16524308,249.98,249.9,23.776884]
[1732503904357,5.15544308,249.95,249.9,23.776884]
[1732503905058,5.15544308,249.96,249.9,23.776884]
[1732503905930,16.0098,249.98,249.9,28.93232708]
[1732503906148,16.0098,249.98,249.91,5.15544308]
[1732503906439,16.0098,249.98,249.92,23.776884]
[1732503907231,21.16524308,249.98,249.91,26.977984]
[1732503907457,5.15544308,249.95,249.9,23.776884]
[1732503907835,16.0098,249.98,249.9,23.776884]
[1732503908058,5.15544308,249.97,249.9,23.776884]
[1732503908259,5.15544308,249.97,249.9,28.93232708]
[1732503908778,5.15544308,249.97,249.9,32.13342708]
[1732503910655,16.0098,249.98,249.92,28.93232708]
[1732503911339,21.16524308,249.98,249.92,23.776884]
[1732503911841,21.16524308,249.98,249.94,23.776884]
[1732503913159,21.16524308,249.98,249.92,23.776884]
[1732503913160,5.15544308,249.97,249.92,23.776884]
[1732503913453,5.15544308,249.95,249.89,3.2013]
[1732503913663,5.15544308,249.95,249.9,23.776884]
[1732503913861,5.15544308,249.94,249.9,23.776884]
[1732503914061,5.15544308,249.93,249.9,23.776884]
[1732503914443,5.15544308,249.93,249.9,26.978084]
[1732503914841,5.15544308,249.93,249.87,20.0]
[1732503915165,16.0098,249.98,249.83,6.29169801]
[1732503915166,5.15544308,249.89,249.83,6.29169801]
[1732503915332,5.15544308,249.86,249.82,9.49379801]
[1732503915540,5.15544308,249.86,249.82,3.2021]
[1732503916347,5.15544308,249.88,249.8,3.2025]
[1732503917139,5.15544308,249.88,249.81,23.776884]
[1732503917745,5.15544308,249.88,249.8,26.979384]
[1732503919660,5.15544308,249.86,249.8,23.776884]
[1732503919854,5.15544308,249.86,249.77,11.44714109]
[1732503919855,5.15544308,249.84,249.79,23.776884]
[1732503920068,5.15544308,249.82,249.76,6.29169801]
[1732503920257,5.15544308,249.82,249.75,3.2031]
[1732503921470,5.15544308,249.8,249.75,3.2031]
[1732503922272,5.15544308,249.8,249.73,3.2034]
[1732503922474,5.15544308,249.78,249.71,9.49529801]
[1732503922769,5.15544308,249.78,249.69,12.58339603]
[1732503922770,5.15544308,249.76,249.69,3.2038]
[1732503923966,5.15544308,249.76,249.69,8.35924308]
[1732503924161,5.15544308,249.78,249.71,3.2037]
[1732503925081,5.15544308,249.76,249.7,23.776884]
[1732503925576,5.15544308,249.76,249.7,26.980684]
[1732503927973,5.15544308,249.76,249.68,3.2039]
[1732503929060,5.15544308,249.76,249.67,5.15544308]
[1732503929263,5.15544308,249.76,249.68,3.204]
[1732503929652,5.15544308,249.76,249.69,5.15544308]
[1732503929973,15.4925,249.79,249.69,5.15544308]
[1732503929974,5.15544308,249.78,249.7,3.2038]
[1732503930678,5.15544308,249.78,249.71,23.776884]
[1732503931482,5.15544308,249.78,249.71,3.2036]
[1732503931681,5.15544308,249.76,249.69,8.35934308]
[1732503932259,5.15544308,249.76,249.68,23.776884]
[1732503933252,5.15544308,249.76,249.69,3.2039]
[1732503933659,5.15544308,249.76,249.68,23.776884]
[1732503933869,5.15544308,249.76,249.68,26.980884]
[1732503934073,5.15544308,249.74,249.66,9.49589801]
[1732503934272,5.15544308,249.74,249.66,8.35964308]
[1732503935354,5.15544308,249.72,249.64,3.2045]
[1732503937692,11.52044308,249.74,249.68,23.776884]
[1732503937858,6.365,249.74,249.68,23.776884]
[1732503938694,6.365,249.74,249.69,3.2039]
[1732503939179,5.15544308,249.78,249.7,23.776884]
[1732503940275,5.15544308,249.78,249.71,3.2037]
[1732503943908,5.15544308,249.78,249.72,23.776884]
[1732503944081,15.4925,249.79,249.72,23.776884]
[1732503945003,15.4925,249.79,249.73,3.2034]
[1732503945790,15.4925,249.79,249.73,8.35884308]
[1732503945963,15.4925,249.79,249.76,23.776884]
[1732503946662,15.4925,249.79,249.74,28.93232708]
[1732503947185,15.4925,249.79,249.76,23.776884]
[1732503948129,161.68967664,249.98,249.79,23.776884]
[1732503948130,5.15544308,249.89,249.79,23.776884]
[1732503948275,6.2896,249.92,249.75,3.2032]
[1732503948276,5.15544308,249.9,249.83,23.776884]
[1732503948609,20.95324308,249.91,249.83,28.93232708]
[1732503948889,5.15544308,249.9,249.83,23.776884]
[1732503949085,5.15544308,249.9,249.85,23.776884]
[1732503951292,5.15544308,249.88,249.83,23.776884]
[1732503952877,15.7978,249.91,249.77,10.97495948]
[1732503952878,5.15544308,249.85,249.77,10.97495948]
[1732503953198,5.15544308,249.83,249.77,3.2028]
[1732503954284,5.15544308,249.83,249.78,23.776884]
[1732503955294,5.15544308,249.81,249.74,3.2032]
[1732503956280,5.15544308,249.79,249.72,3.2035]
[1732503956795,5.15544308,249.79,249.73,23.776884]
[1732503957487,5.15544308,249.79,249.75,23.776884]
[1732503958302,21.43044308,249.82,249.75,23.776884]
[1732503958552,21.43044308,249.82,249.75,28.93232708]
[1732503959291,21.43044308,249.82,249.76,3.203]
[1732503959502,21.43044308,249.82,249.77,23.776884]
[1732503960706,6.27241916,249.93,249.78,28.93232708]
[1732503960707,5.15544308,249.86,249.78,28.93232708]
[1732503961495,5.15544308,249.84,249.77,23.776884]
[1732503962393,15.1175,249.87,249.75,23.776884]
[1732503962394,5.15544308,249.82,249.75,23.776884]
[1732503963510,5.15544308,249.8,249.72,8.35884308]
[1732503963725,5.15544308,249.8,249.73,23.776884]
[1732503964383,5.15544308,249.78,249.69,8.35934308]
[1732503964601,6.5511,249.8,249.69,8.35934308]
[1732503964602,5.15544308,249.76,249.69,8.35934308]
[1732503965804,5.15544308,249.76,249.7,23.776884]
[1732503966999,5.15544308,249.76,249.7,26.980684]
[1732503967309,5.15544308,249.76,249.7,23.776884]
[1732503967505,5.15544308,249.72,249.67,6.29169801]
[1732503967681,5.15544308,249.72,249.65,6.29169801]
[1732503967890,5.15544308,249.72,249.65,9.49609801]
[1732503968193,5.15544308,249.72,249.65,3.2044]
[1732503968797,5.15544308,249.76,249.68,5.15544308]
[1732503969000,15.4507,249.77,249.71,23.776884]
[1732503969197,20.60614308,249.77,249.71,23.776884]
[1732503969393,20.60614308,249.77,249.65,23.776884]
[1732503969394,5.15544308,249.75,249.65,23.776884]
[1732503969594,5.15544308,249.75,249.68,23.776884]
[1732503971383,5.15544308,249.72,249.66,23.776884]
[1732503972710,5.15544308,249.72,249.65,23.776884]
[1732503974415,5.15544308,249.72,249.62,2.8041]
[1732503974416,5.15544308,249.68,249.6,9.09609801]
[1732503974626,5.15544308,249.66,249.58,14.25174109]
[1732503974800,5.15544308,249.66,249.57,12.58339603]
[1732503974801,5.15544308,249.64,249.57,6.29169801]
[1732503974997,5.15544308,249.64,249.56,14.25194109]
[1732503975514,5.15544308,249.64,249.56,2.8048]
[1732503977100,5.15544308,249.64,249.57,23.776884]
[1732503978314,5.15544308,249.66,249.57,28.93232708]
[1732503978488,6.4779,249.65,249.57,28.93232708]
[1732503980207,6.4779,249.65,249.59,5.15544308]
[1732503980509,6.4779,249.65,249.6,23.776884]
[1732503981519,5.15544308,249.64,249.59,23.776884]
[1732503981717,5.15544308,249.64,249.57,23.776884]
[1732503982018,5.15544308,249.58,249.52,6.29169801]
[1732503982519,16.5312,249.57,249.51,6.29169801]
[1732503983016,16.5312,249.57,249.5,9.09719801]
[1732503983313,16.5312,249.57,249.5,6.29169801]
[1732503983517,5.15544308,249.56,249.5,6.29169801]
[1732503984106,16.5312,249.57,249.51,6.29169801]
[1732503984417,16.5312,249.57,249.52,23.776884]